Cogmind - Beta 17 @@@ ROGUE MODE // 2026.07.23 @ 23:44:37 Player: muppy Result: Self-destructed Performance ------------- Evolutions (1) 500 Regions Visited (2) 400 Robots Destroyed (9) 45 Value Destroyed (230) 230 Prototype IDs (1) 20 Alien Tech Used (0) 0 Bonus (0) 0 TOTAL SCORE: 1195 Bonus ------- None Cogmind --------- Core Integrity 184/400 Matter 11/300 Energy 280/280 System Corruption 0% Temperature Cool (0) Movement Walking (90) Location -9/Materials Parts ------- > --- POWER (1) -------- Heavy Ion Engine > --- PROPULSION (3) --- VSS Leg VSS Leg VSS Leg > --- UTILITY (3) ------ Weight Redist. System Improved Utility Shielding Improved Utility Shielding > --- WEAPON (2) ------- Assault Rifle > --- INVENTORY (5) ---- Flight Unit Peak State ------------ > --- POWER ------------ Heavy Ion Engine > --- PROPULSION ------- VSS Leg VSS Leg VSS Leg > --- UTILITY ---------- Weight Redist. System Improved Utility Shielding Improved Utility Shielding > --- WEAPON ----------- Assault Rifle > --- INVENTORY -------- Flight Unit [Rating: 21] Favorites ----------- Power Light Ion Engine Engine Light Ion Engine Propulsion VSS Leg Leg VSS Leg Flight Unit Flight Unit Utility Improved Utility Shielding Device Weight Redist. System Protection Improved Utility Shielding Weapon Light Assault Rifle Ballistic Gun Light Assault Rifle Build | -11 -10 -9 ------- Run | Yrd Mat Mat Slots Evolved 2 | . . 2 Power . | . . . Propulsion 1 | . . 1 Utility 1 | . . 1 Weapon . | . . . Parts Attached 19 | 5 5 9 Power 3 | 1 1 1 Engine 3 | 1 1 1 Core . | . . . Reactor . | . . . Propulsion 9 | 2 3 4 Treads . | . . . Leg 6 | 2 . 4 Wheel . | . . . Hover . | . . . Flight 3 | . 3 . Utility 4 | . . 4 Device 1 | . . 1 Storage . | . . . Processor . | . . . Hackware . | . . . Protection 3 | . . 3 Artifact . | . . . Weapon 3 | 2 1 . Energy Gun . | . . . Energy Cannon . | . . . Ballistic Gun 3 | 2 1 . Ballistic Cannon . | . . . Launcher . | . . . Special Weapon . | . . . Impact Weapon . | . . . Slashing Weapon . | . . . Piercing Weapon . | . . . Special Melee Weapon . | . . . Unidentified Prototypes 1 | . . 1 Parts Lost 4 | . . 4 Power 1 | . . 1 Propulsion 1 | . . 1 Utility . | . . . Weapon 2 | . . 2 Highest Loss Streak 4 | . . 4 To Critical Strikes . | . . . Average Backups 1 | 1 1 1 Power . | . . . Propulsion . | . . 1 Utility . | . . . Weapon . | . . . Tool/Special . | . . . Unused Backups 1 | . 1 . Power 1 | . 1 . Propulsion . | . . . Utility . | . . . Weapon . | . . . Tool/Special . | . . . Average Slot Usage (%) 77 | . 66 82 Engine 10 | . 14 8 Leg 24 | . 18 27 Flight 4 | . 6 3 Device 6 | . . 9 Protection 11 | . . 17 Ballistic Gun 19 | . 28 15 Peak Build Rating 21 | 5 5 21 Average Rating 12 | 3 4 17 On Entrance 3 | . 5 5 Avg Prop Armor Cover (%) 6 | . . 6 Naked Turns . | . . . Heaviest Build 14 | 8 8 14 Greatest Support 42 | 20 20 42 Greatest Overweight (x) 2 | . 2 . Average Overweight (x) . | . . . Largest Inventory Capacity 5 | 5 5 5 Average Capacity 5 | 5 5 5 Most Carried 5 | 5 5 4 Average Carried 1 | 1 1 1 Final Capacity 5 | 5 5 5 Final Carried 1 | 1 1 1 Class Distribution -------------------- 90% | Mutant 9% | Scavenger-Mutant Dominant Class ---------------- Mutant | -10/Materials Mutant | -9/Materials Resources | -11 -10 -9 ----------- Run | Yrd Mat Mat Matter Collected 222 | 151 47 24 Remotely . | . . . Salvage Created 291 | . 47 244 Parts 22 | . 7 15 Haulers Intercepted . | . . . Recyclers Shooed . | . . . Parts Field Recycled . | . . . Retrieved Matter . | . . . Parts Self-Destructed . | . . . Prevented . | . . . Parts Restored . | . . . Kills | -11 -10 -9 ------- Run | Yrd Mat Mat Combat Hostiles Destroyed 9 | . 3 6 Guns 9 | . 3 6 Classes Destroyed 2 | . 1 1 Swarmer 5 | . 3 2 Sentry 4 | . . 4 Best Kill Streak 3 | . 3 2 Combat Bots Only 3 | . 3 2 Max Kills in Single Turn 1 | . 1 1 Gunslinging . | . . . Exploded . | . . . Melee . | . . . Uniques/NPCs Destroyed . | . . . Combat | -11 -10 -9 -------- Run | Yrd Mat Mat Hostile Shots Fired 109 | . 15 94 Missed 32 | . 2 30 Hits 77 | . 13 64 Projectile 77 | . 13 64 Critical Strikes 1 | . . 1 Damage Taken 874 | . 112 762 Core 242 | . 26 216 Absorbed by Shields . | . . . Core Remaining (%) 94 | 100 89 . Volleys Fired 46 | . 7 39 Largest 2 | . 2 2 Hottest 40 | . 40 40 Shots Fired 66 | . 14 52 Gun 66 | . 14 52 Cannon . | . . . Launcher . | . . . Special . | . . . Kinetic 66 | . 14 52 Thermal . | . . . Explosive . | . . . Electromagnetic . | . . . Robot Hit Streak 10 | . 4 10 Robot Miss Streak 3 | . 2 3 Penetration Max . | . . . Secondary Targets 2 | . 1 1 Max Gunslinging Chain 1 | . 1 1 Shots Hit Robots 48 | . 8 40 Core Hits 18 | . 3 15 Critical Kills . | . . . Critical Parts Destroyed . | . . . Critical Strikes . | . . . Melee Attacks . | . . . Impact . | . . . Slashing . | . . . Piercing . | . . . Sneak Attacks . | . . . Combat Hostiles . | . . . Follow-up Attacks . | . . . Damage Inflicted 499 | . 82 417 Guns 483 | . 82 401 Cannons . | . . . Explosions . | . . . Melee . | . . . Ramming 16 | . . 16 Kinetic 483 | . 82 401 Thermal . | . . . Explosive . | . . . Electromagnetic . | . . . Impact . | . . . Slashing . | . . . Piercing . | . . . Highest Corruption . | . . . Average Corruption . | . . . Corruption Purged . | . . . Corruption Blocked . | . . . Overload Shots . | . . . Overflow Damage . | . . . Projectiles . | . . . Explosions . | . . . Melee . | . . . Knockbacks 1 | . . 1 Impact 1 | . . 1 Kinetic . | . . . Secondary . | . . . Self-Inflicted Damage . | . . . Shots . | . . . Rammed . | . . . Targets Rammed 1 | . . 1 Kicked 1 | . . 1 Crushed . | . . . Highest Temperature 15 | . 8 15 Average Temperature 5 | . 5 5 Received Heat Transfer 207 | . 9 198 Siege Activations . | . . . Martial Activations . | . . . Shielding Activations . | . . . Robots Disrupted . | . . . Combat Hostiles . | . . . Robots Corrupted . | . . . Combat Hostiles . | . . . Parts Fried . | . . . Impact Corruptions . | . . . Robots Melted . | . . . Combat Hostiles . | . . . Parts Melted . | . . . Heat Transferred . | . . . Parts Sabotaged . | . . . Parts Stolen . | . . . Parts Stripped . | . . . Power Chain Reactions . | . . . Alert | -11 -10 -9 ------- Run | Yrd Mat Mat Maximum Alert Level . | . . . Low Security (%) 100 | 100 100 100 Level 1 . | . . . Level 2 . | . . . Level 3 . | . . . Level 4 . | . . . Level 5 . | . . . High Security . | . . . Max Security . | . . . Peak Influence 112 | . 70 112 Initial 22 | . . 22 Average 50 | . 26 69 Influence Increases 345 | . 85 260 Destroy 0b10 Robot/C 180 | . 60 120 Destroy Leader 60 | . 10 50 Lose Combat Pursuer 105 | . 15 90 Influence Decreases 243 | . 30 213 Entered New Map 33 | . . 33 Time Decay 170 | . 30 140 Lost Part 40 | . . 40 Squads Dispatched 2 | . 1 1 Investigation 2 | . 1 1 Extermination . | . . . Reinforcement . | . . . Assault . | . . . Garrison . | . . . Intercept . | . . . Searches Triggered . | . . . Construction Impeded . | . . . Haulers Reinforced . | . . . Active Scanning Responses . | . . . Cargo Convoy Interrupts . | . . . Stealth | -11 -10 -9 --------- Run | Yrd Mat Mat Distress Signals 1 | . . 1 Communications Jammed . | . . . Distress Signals . | . . . Times Spotted 16 | . 7 9 Peak Tracking Total 6 | . 4 6 Tactical Retreats 4 | . 1 3 Traps | -11 -10 -9 ------- Run | Yrd Mat Mat Traps Triggered 2 | . 1 1 Indirectly . | . . . Trap Hack Attempts . | . . . Triggered . | . . . Disarmed . | . . . Reprogrammed . | . . . Reused . | . . . Traps Extracted . | . . . Installed . | . . . Triggered . | . . . Machines | -11 -10 -9 ---------- Run | Yrd Mat Mat Machines Disabled . | . . . Max in Single Turn . | . . . Machines Repaired . | . . . Machines Dismantled . | . . . Machines Sabotaged . | . . . Overloaded Fab Kills . | . . . Hacking | -11 -10 -9 --------- Run | Yrd Mat Mat Machines Accessed . | . . . Terminals . | . . . Fabricators . | . . . Repair Stations . | . . . Recycling Units . | . . . Scanalyzers . | . . . Garrison Access . | . . . Total Hacks . | . . . Successful . | . . . Failed . | . . . Catastrophic . | . . . Database Lockouts . | . . . Manual . | . . . Terminals . | . . . Fabricators . | . . . Repair Stations . | . . . Recycling Units . | . . . Scanalyzers . | . . . Garrison Access . | . . . Terminal Hacks . | . . . Fabricator Hacks . | . . . Repair Station Hacks . | . . . Recycling Unit Hacks . | . . . Scanalyzer . | . . . Garrison Access Hacks . | . . . Unauthorized Hacks . | . . . Terminals . | . . . Fabricators . | . . . Repair Stations . | . . . Recycling Units . | . . . Scanalyzers . | . . . Garrison Access . | . . . Data Cores Recovered . | . . . Used . | . . . Hacking Detections . | . . . Full Trace Events . | . . . Feedback Events . | . . . Feedback Blocked . | . . . Robot Schematics Acquired . | . . . Robots Built . | . . . Authchips . | . . . Time . | . . . Total Robot Build Rating . | . . . Part Schematics Acquired . | . . . Parts Built . | . . . Authchips . | . . . Time . | . . . Total Part Build Rating . | . . . Part Studies Acquired . | . . . Parts Repaired . | . . . Time . | . . . Parts Recycled . | . . . Recycled Matter . | . . . Retrieved Matter . | . . . Retrieved Components . | . . . Parts Scanalyzed . | . . . Part Schematics Acquired . | . . . Parts Damaged . | . . . Bothacking | -11 -10 -9 ------------ Run | Yrd Mat Mat Used RIF Installer . | . . . Robots Hacked . | . . . Non-combat . | . . . Combat . | . . . Robot Hacks Applied . | . . . Relay Couplers Released . | . . . Fabnet Peak Effective % . | . . . Robots Rewired . | . . . Allies Hacked . | . . . Hacks Repelled . | . . . Allies | -11 -10 -9 -------- Run | Yrd Mat Mat Total Allies . | . . . Largest Group . | . . . Highest-Rated Group . | . . . Highest-Rated Ally . | . . . Total Orders . | . . . Ally Attacks . | . . . Total Damage . | . . . Kills . | . . . Allies Corrupted . | . . . Allies Melted . | . . . Intel | -11 -10 -9 ------- Run | Yrd Mat Mat Active Infowar (turns) . | . . . Robot Analysis Total . | . . . Derelict Logs Recovered . | . . . Drone Launches . | . . . Drone Recoveries . | . . . Exploration | -11 -10 -9 ------------- Run | Yrd Mat Mat Turns Passed 482 | 54 131 297 Spaces Moved 402 | 45 124 233 Core 19 | 14 5 . Treads . | . . . Legs 261 | 31 55 175 Wheels . | . . . Hover . | . . . Flight 122 | . 64 58 Fastest Speed 37 | 50 37 37 Average Speed 79 | 98 78 76 Slowest Speed 150 | 120 150 90 Overloaded Moves . | . . . Propulsion Burnouts . | . . . Robots Hopped 2 | . 2 . Potential Cave-ins . | . . . Cave-ins Triggered . | . . . Exploration Rate (%) 21 | 3 32 29 Regions Visited 2 Branch Regions . Pre-discovered Areas . | . . . Known Exits Taken . | . . . Unknown Exits Taken 2 | 1 1 . Scrap Searched . | . . . Spaces Dug . | . . . Terrain Destroyed . | . . . Melee . | . . . Projectile . | . . . AOE . | . . . Terrain Rammed . | . . . Walls Destroyed . | . . . Machines Disabled . | . . . Actions | -11 -10 -9 --------- Run | Yrd Mat Mat Total 504 | 55 143 306 Wait 8 | . . 8 Move 397 | 44 120 233 Hop 1 | . 1 . Pick Up 20 | 6 5 9 Fast Attach . | . . . Attach 18 | 5 2 11 Detach 2 | . . 2 Swap 4 | . 3 1 Drop 7 | . 5 2 Fire 46 | . 7 39 Melee . | . . . Ram . | . . . Kick 1 | . . 1 Crush . | . . . Escape Stasis . | . . . Rewire . | . . . Trap . | . . . Miscellaneous . | . . . Route ------- -11/Scrapyard -10/Materials -9/Materials History --------- Turn | Location | Event 3 | -11/Scrapyard | Discovered new exit (range 15) 55 | -11/Scrapyard | Entered Materials 172 | -10/Materials | Discovered new exit (range 16) 186 | -10/Materials | Entered another Materials area 186 | -9/Materials | Evolved 2 slots: Propulsion x1, Utility x1 352 | -9/Materials | Lost 4 parts (1p1n2w) 445 | -9/Materials | Core integrity fell below 50% 476 | -9/Materials | Build established: Mutant 483 | -9/Materials | Self-destructed Last Messages --------------- 00349_ Acquired 14 matter. 00349_ K-01 Serf collects debris. 00359_ Acquired Prototype Engine. 00360_ Identified Hvy. Ion Engine. 00369_ K-01 Serf collects debris. 00371_ K-01 Serf cleans the Neutrino Reactor. 00409_ R-06 Scavenger collects Heat Sink. 00412_ K-01 Serf destroyed. 00417_ Acquired 10 matter. 00423_ K-01 Serf collects debris. 00432_ Critical hit (Burn: +37). 00446_ Y-45 Defender destroyed. 00450_ R-06 Scavenger collects Wheel. 00467_ Kicked U-05 Engineer out of the way. 00467_ U-05 Engineer knocked back. 00467_ U-05 Engineer sends out distress signal. 00472_ Triggered Alarm Trap. 00472_ An alarm sounds. 00472_ ALERT: Alarm triggered, dispatching investigation squad. Map ----- +----------------------------------------------------+ | ?????????????????????? ??# + % | | ?????????????????????? ??# # = | | ?????????????????????? ??# # #######+# | | ?????????????????????# "?# # #???#| | | ?????????????????????# T?# # #???# | | ?????????????????????# "?########## #???#"S | | ?????????????????????# #??????????# #???#""" | | ?????????????????????# #?########## #???# "" | | ?????????????????????# #?# !! # #???# | | ????????????????????## ### !! # #???#+### | | ????????????????????# ## ! # #???# #?? | | ????????????????????# T / # #???# #?? | | ????????????????????# ## + ##### ### | | ????????????????????## ### """ # | | ?????????????????????# #?# """ + | | ?????????????????????# #?# """ # | | ?????????????????????# #?# #########+### | | ?????????????????????# #?##########???# | | ?????????????????????# #??????????????# | | ?????????????????????#u#??????????????# """ """ | | ?????????????????????#u#??????????????# """ """ | | ?????????????????????# #??????????????# """ """ | | ?????????????????????# #??????????????# | | ?????????????????????# #??????????????# | | ?????????????????????# #??????????????# | | ?????????????????????#@#??????????????######### | | ?????????????????????# #??????????????????????? | | ?????????????????????# #??????????????????????? | | ?????????????????????# #??????????????????????? | | ?????????????????????#g#??????????????????????? | | ?????????????????????# ??????????????????????? | | ??????????????????????##??????????????????????? | | ??????????????????????????????????????????????? | | ??????????????????????????????????????????????? | | ??????????????????????????????????????????????? | | ??????????????????????????????????????????????? | | | | | | | | | | | | | | | | | | | | | | | | | | | | | +----------------------------------------------------+ Best States ------------- Heat Dissipation 28 Energy Generation 14 Energy Capacity 280 Matter Stores 218 Matter Capacity 300 Sight Range 16 Terrain Scan Density 10 Additional Mass Support 6 Utility Shielding 66 Evasion (%) 62 Item Schematics ----------------- None Robot Schematics ------------------ None Fabricated ------------ Nothing Repaired ---------- Nothing Studied --------- None Alien Tech Used ----------------- None Achievements -------------- Sprinter Challenges ------------ None Game ------ Seed RiotDisposableModule Manual? 0 Play Time 00:08:50 Cumulative 8.5 hours Start 2026.07.23 @ 23:35:02 End 2026.07.23 @ 23:44:37 Sessions 1 Manual Loads 0 Difficulty Rogue Special Mode None Game No. 17 Rogue 17 Adventurer 0 Explorer 0 Win Type - Total 0 Types 0/0/0/0/0/0/0/0/0/0 Lore% 6 Gallery% 14 Achievement% 9 Wizard Run 0 Options --------- Layout 1 ASCII 0 Keyboard 0 Movement Mouse Keybinds 0 Fullscreen 1 Font 48/SmallcapsGlow++ Map View 50x35 Zoom Use 0% Tactical HUD 1 Map Filters NONE Filters NONE Steam 1 RUN: 321e6f0c-0f0e-4f95-9e3a-df8a76a70380